[Event "Titled Tuesday Blitz June 21 Late 2022"]
[White "Taboas Rodriguez, Daniel"]
[Black "Alexiadis, Hristos"]
[WhiteFideId "2208466"]
[BlackFideId "4249623"]
[WhiteElo "2526"]
[BlackElo "2690"]
[Result "0-1"]
[Round "07"]
[TimeControl "180+1"]
[Date "2022.06.22"]
[WhiteClock "0:00:03"]
[BlackClock "0:00:37"]

1. d4 {[%clk 0:02:58]}  Nf6 {[%clk 0:03:00]} 2. Nf3 {[%clk 0:02:59]}  e6 {[%clk 0:02:59]} 3. c4 {[%clk 0:03:00]}  b6 {[%clk 0:03:00]} 4. Nc3 {[%clk 0:02:59]}  Bb4 {[%clk 0:02:58]} 5. Qc2 {[%clk 0:02:58]}  Bb7 {[%clk 0:02:57]} 6. a3 {[%clk 0:02:59]}  Bxc3+ {[%clk 0:02:57]} 7. Qxc3 {[%clk 0:03:00]}  O-O {[%clk 0:02:57]} 8. Bg5 {[%clk 0:02:59]}  h6 {[%clk 0:02:57]} 9. Bh4 {[%clk 0:02:59]}  g5 {[%clk 0:02:57]} 10. Bg3 {[%clk 0:02:59]}  Ne4 {[%clk 0:02:57]} 11. Qc2 {[%clk 0:02:58]}  f5 {[%clk 0:02:58]} 12. e3 {[%clk 0:02:58]}  d6 {[%clk 0:02:58]} 13. Bd3 {[%clk 0:02:57]}  Nd7 {[%clk 0:02:59]} 14. O-O {[%clk 0:02:57]}  Qf6 {[%clk 0:02:57]} 15. b4 {[%clk 0:02:48]}  Rac8 {[%clk 0:02:44]} 16. a4 {[%clk 0:02:46]}  h5 {[%clk 0:02:44]} 17. h4 {[%clk 0:02:43]}  g4 {[%clk 0:02:41]} 18. Nd2 {[%clk 0:02:32]}  Nxg3 {[%clk 0:02:41]} 19. fxg3 {[%clk 0:02:33]}  c5 {[%clk 0:02:40]} 20. bxc5 {[%clk 0:02:28]}  bxc5 {[%clk 0:02:40]} 21. Nb3 {[%clk 0:02:28]}  Qh6 {[%clk 0:02:38]} 22. Rae1 {[%clk 0:02:26]}  Nf6 {[%clk 0:02:37]} 23. Kh2 {[%clk 0:02:26]}  Ne4 {[%clk 0:02:34]} 24. dxc5 {[%clk 0:02:06]}  dxc5 {[%clk 0:02:05]} 25. Bxe4 {[%clk 0:01:55]}  Bxe4 {[%clk 0:02:06]} 26. Qc3 {[%clk 0:01:55]}  Qg7 {[%clk 0:02:06]} 27. Qa5 {[%clk 0:01:17]}  Qc7 {[%clk 0:02:02]} 28. Qc3 {[%clk 0:01:10]}  Qg7 {[%clk 0:01:58]} 29. Qa5 {[%clk 0:01:09]}  Bd3 {[%clk 0:01:29]} 30. Rf2 {[%clk 0:00:59]}  Bxc4 {[%clk 0:01:29]} 31. Nxc5 {[%clk 0:00:59]}  Qe5 {[%clk 0:01:26]} 32. Nb3 {[%clk 0:00:51]}  Qxa5 {[%clk 0:01:24]} 33. Nxa5 {[%clk 0:00:52]}  Bd5 {[%clk 0:01:24]} 34. Rb1 {[%clk 0:00:45]}  Rb8 {[%clk 0:01:22]} 35. Rb5 {[%clk 0:00:42]}  Rxb5 {[%clk 0:01:19]} 36. axb5 {[%clk 0:00:43]}  Rb8 {[%clk 0:01:20]} 37. Rb2 {[%clk 0:00:43]}  Rb6 {[%clk 0:01:19]} 38. Rb4 {[%clk 0:00:23]}  a6 {[%clk 0:01:18]} 39. Nc4 {[%clk 0:00:18]}  Rxb5 {[%clk 0:01:16]} 40. Ra4 {[%clk 0:00:18]}  Rc5 {[%clk 0:01:09]} 41. Nd6 {[%clk 0:00:13]}  Rc2 {[%clk 0:01:08]} 42. e4 {[%clk 0:00:12]}  fxe4 {[%clk 0:01:09]} 43. Nxe4 {[%clk 0:00:12]}  Kg7 {[%clk 0:01:06]} 44. Kg1 {[%clk 0:00:09]}  Re2 {[%clk 0:01:03]} 45. Nf2 {[%clk 0:00:08]}  Ra2 {[%clk 0:00:54]} 46. Rf4 {[%clk 0:00:05]}  a5 {[%clk 0:00:51]} 47. Ne4 {[%clk 0:00:04]}  e5 {[%clk 0:00:39]} 48. Nf6 {[%clk 0:00:03]}  exf4 {[%clk 0:00:37]} 0-1


[Site "https://www.chess.com"]

[Event "Titled Tuesday Blitz June 21 Late 2022"]
[White "Vasquez Schroeder, Rodrigo"]
[Black "Isajevsky, Anton"]
[WhiteFideId "3400042"]
[BlackFideId "4142500"]
[WhiteElo "2567"]
[BlackElo "2510"]
[Result "1-0"]
[Round "07"]
[TimeControl "180+1"]
[Date "2022.06.21"]
[WhiteClock "0:02:26"]
[BlackClock "0:00:01"]

1. e4 {[%clk 0:03:00]}  c5 {[%clk 0:02:59]} 2. Nf3 {[%clk 0:03:00]}  d6 {[%clk 0:02:58]} 3. d4 {[%clk 0:03:00]}  cxd4 {[%clk 0:02:59]} 4. Nxd4 {[%clk 0:03:01]}  Nf6 {[%clk 0:02:59]} 5. Nc3 {[%clk 0:03:01]}  a6 {[%clk 0:03:00]} 6. Bg5 {[%clk 0:03:01]}  e6 {[%clk 0:02:49]} 7. f4 {[%clk 0:03:00]}  Be7 {[%clk 0:02:47]} 8. Qf3 {[%clk 0:02:59]}  h6 {[%clk 0:02:32]} 9. Bh4 {[%clk 0:02:58]}  Nbd7 {[%clk 0:02:15]} 10. O-O-O {[%clk 0:02:54]}  Qc7 {[%clk 0:02:11]} 11. Be2 {[%clk 0:02:54]}  b5 {[%clk 0:01:58]} 12. Bxf6 {[%clk 0:02:52]}  Nxf6 {[%clk 0:01:23]} 13. e5 {[%clk 0:02:51]}  Bb7 {[%clk 0:00:47]} 14. Qg3 {[%clk 0:02:51]}  dxe5 {[%clk 0:00:39]} 15. fxe5 {[%clk 0:02:51]}  Nd5 {[%clk 0:00:32]} 16. Nxe6 {[%clk 0:02:46]}  fxe6 {[%clk 0:00:26]} 17. Qg6+ {[%clk 0:02:46]}  Kd7 {[%clk 0:00:21]} 18. Bg4 {[%clk 0:02:45]}  Qxe5 {[%clk 0:00:18]} 19. Nxd5 {[%clk 0:02:45]}  Bxd5 {[%clk 0:00:10]} 20. Rxd5+ {[%clk 0:02:43]}  Qxd5 {[%clk 0:00:10]} 21. Rd1 {[%clk 0:02:43]}  Bg5+ {[%clk 0:00:06]} 22. Kb1 {[%clk 0:02:43]}  Qxd1+ {[%clk 0:00:05]} 23. Bxd1 {[%clk 0:02:42]}  Rhe8 {[%clk 0:00:06]} 24. Qxg7+ {[%clk 0:02:38]}  Re7 {[%clk 0:00:06]} 25. Qd4+ {[%clk 0:02:38]}  Kc7 {[%clk 0:00:04]} 26. h4 {[%clk 0:02:36]}  Rd8 {[%clk 0:00:03]} 27. Qc5+ {[%clk 0:02:36]}  Kb8 {[%clk 0:00:02]} 28. Bf3 {[%clk 0:02:33]}  Bf6 {[%clk 0:00:02]} 29. Qb6+ {[%clk 0:02:31]}  Kc8 {[%clk 0:00:02]} 30. Qxa6+ {[%clk 0:02:30]}  Kc7 {[%clk 0:00:01]} 31. Qc6+ {[%clk 0:02:26]} 1-0


[Site "https://www.chess.com"]

[Event "Titled Tuesday Blitz June 21 Late 2022"]
[White "Vifleemskaia, Svetlana"]
[Black "Lopez Gracia, Fernando"]
[WhiteFideId "4129490"]
[BlackFideId "2207184"]
[WhiteElo "1929"]
[BlackElo "2474"]
[Result "1-0"]
[Round "07"]
[TimeControl "180+1"]
[Date "2022.06.22"]
[WhiteClock "0:00:32"]
[BlackClock "0:01:36"]

1. d4 {[%clk 0:02:14]}  Nf6 {[%clk 0:02:57]} 2. c4 {[%clk 0:02:13]}  e6 {[%clk 0:02:58]} 3. Nc3 {[%clk 0:02:13]}  Bb4 {[%clk 0:02:58]} 4. e3 {[%clk 0:02:12]}  c5 {[%clk 0:02:56]} 5. Ne2 {[%clk 0:02:10]}  cxd4 {[%clk 0:02:56]} 6. exd4 {[%clk 0:02:09]}  d5 {[%clk 0:02:57]} 7. a3 {[%clk 0:02:08]}  Be7 {[%clk 0:02:56]} 8. Nf4 {[%clk 0:01:48]}  dxc4 {[%clk 0:02:53]} 9. Bxc4 {[%clk 0:01:48]}  O-O {[%clk 0:02:54]} 10. O-O {[%clk 0:01:47]}  a6 {[%clk 0:02:54]} 11. Be3 {[%clk 0:01:46]}  b5 {[%clk 0:02:54]} 12. Bd3 {[%clk 0:01:45]}  Bb7 {[%clk 0:02:54]} 13. Rc1 {[%clk 0:01:44]}  Nbd7 {[%clk 0:02:54]} 14. Bb1 {[%clk 0:01:43]}  Nb6 {[%clk 0:02:49]} 15. Qd3 {[%clk 0:01:25]}  g6 {[%clk 0:02:48]} 16. f3 {[%clk 0:01:21]}  Nbd5 {[%clk 0:02:47]} 17. Ncxd5 {[%clk 0:01:04]}  Nxd5 {[%clk 0:02:48]} 18. Nxd5 {[%clk 0:01:04]}  Qxd5 {[%clk 0:02:46]} 19. Bh6 {[%clk 0:01:03]}  Rfc8 {[%clk 0:02:45]} 20. Qe3 {[%clk 0:01:03]}  Bf6 {[%clk 0:02:36]} 21. Rcd1 {[%clk 0:00:59]}  Qd7 {[%clk 0:02:15]} 22. Qf4 {[%clk 0:00:56]}  Bg7 {[%clk 0:02:13]} 23. Bxg7 {[%clk 0:00:54]}  Kxg7 {[%clk 0:02:14]} 24. Be4 {[%clk 0:00:54]}  Bd5 {[%clk 0:02:11]} 25. Rfe1 {[%clk 0:00:53]}  Qc7 {[%clk 0:02:02]} 26. Qg5 {[%clk 0:00:49]}  Bxe4 {[%clk 0:02:00]} 27. fxe4 {[%clk 0:00:49]}  Qd8 {[%clk 0:01:56]} 28. Qg3 {[%clk 0:00:47]}  Rc2 {[%clk 0:01:55]} 29. d5 {[%clk 0:00:44]}  exd5 {[%clk 0:01:47]} 30. exd5 {[%clk 0:00:40]}  Qb6+ {[%clk 0:01:47]} 31. Kh1 {[%clk 0:00:39]}  Qf2 {[%clk 0:01:41]} 32. Qxf2 {[%clk 0:00:36]}  Rxf2 {[%clk 0:01:41]} 33. d6 {[%clk 0:00:36]}  Rd8 {[%clk 0:01:38]} 34. b4 {[%clk 0:00:33]}  Rf6 {[%clk 0:01:35]} 35. d7 {[%clk 0:00:32]}  Rd6 {[%clk 0:01:36]} 36. Rxd6 {[%clk 0:00:32]} 1-0


[Site "https://www.chess.com"]

[Event "Titled Tuesday Blitz June 21 Late 2022"]
[White "Vujic, Mihailo"]
[Black "Aldokhin, Ivan"]
[WhiteFideId "918873"]
[BlackFideId "24115720"]
[WhiteElo "2256"]
[BlackElo "2231"]
[Result "1-0"]
[Round "07"]
[TimeControl "180+1"]
[Date "2022.06.22"]
[WhiteClock "0:00:23"]
[BlackClock "0:00:02"]

1. e4 {[%clk 0:02:59]}  e6 {[%clk 0:03:00]} 2. d4 {[%clk 0:02:58]}  d5 {[%clk 0:03:00]} 3. Nc3 {[%clk 0:02:59]}  Bb4 {[%clk 0:03:01]} 4. e5 {[%clk 0:02:59]}  Qd7 {[%clk 0:03:01]} 5. a3 {[%clk 0:02:59]}  Bxc3+ {[%clk 0:03:01]} 6. bxc3 {[%clk 0:02:59]}  b6 {[%clk 0:03:01]} 7. a4 {[%clk 0:02:58]}  Ba6 {[%clk 0:02:56]} 8. Bxa6 {[%clk 0:02:57]}  Nxa6 {[%clk 0:02:57]} 9. a5 {[%clk 0:02:58]}  b5 {[%clk 0:02:55]} 10. Nf3 {[%clk 0:02:58]}  c5 {[%clk 0:02:54]} 11. O-O {[%clk 0:02:56]}  Ne7 {[%clk 0:02:45]} 12. Ba3 {[%clk 0:02:55]}  b4 {[%clk 0:02:43]} 13. cxb4 {[%clk 0:02:50]}  cxb4 {[%clk 0:02:41]} 14. Bb2 {[%clk 0:02:47]}  O-O-O {[%clk 0:02:20]} 15. Qd3 {[%clk 0:02:45]}  Qb7 {[%clk 0:02:13]} 16. c3 {[%clk 0:02:08]}  Nc6 {[%clk 0:02:09]} 17. cxb4 {[%clk 0:02:05]}  Ncxb4 {[%clk 0:02:09]} 18. Rfc1+ {[%clk 0:01:59]}  Kb8 {[%clk 0:02:04]} 19. Qe2 {[%clk 0:01:59]}  Rc8 {[%clk 0:02:00]} 20. Rab1 {[%clk 0:01:57]}  Ka8 {[%clk 0:01:56]} 21. Ba3 {[%clk 0:01:53]}  Rxc1+ {[%clk 0:01:55]} 22. Rxc1 {[%clk 0:01:53]}  Rc8 {[%clk 0:01:44]} 23. Rxc8+ {[%clk 0:01:25]}  Qxc8 {[%clk 0:01:45]} 24. Bxb4 {[%clk 0:01:24]}  Nxb4 {[%clk 0:01:44]} 25. h4 {[%clk 0:01:23]}  Qc4 {[%clk 0:01:39]} 26. Qd2 {[%clk 0:01:03]}  h6 {[%clk 0:01:35]} 27. Qf4 {[%clk 0:01:02]}  Qc7 {[%clk 0:01:31]} 28. h5 {[%clk 0:00:56]}  Nc6 {[%clk 0:01:28]} 29. Qg4 {[%clk 0:00:54]}  Nxa5 {[%clk 0:00:51]} 30. Qxg7 {[%clk 0:00:52]}  Nb3 {[%clk 0:00:51]} 31. Qxh6 {[%clk 0:00:51]}  a5 {[%clk 0:00:51]} 32. Qf8+ {[%clk 0:00:50]}  Kb7 {[%clk 0:00:49]} 33. Kh2 {[%clk 0:00:36]}  Ka6 {[%clk 0:00:20]} 34. Qd6+ {[%clk 0:00:30]}  Qxd6 {[%clk 0:00:16]} 35. exd6 {[%clk 0:00:31]}  Kb7 {[%clk 0:00:10]} 36. h6 {[%clk 0:00:31]}  a4 {[%clk 0:00:06]} 37. d7 {[%clk 0:00:30]}  Kc7 {[%clk 0:00:04]} 38. d8=Q+ {[%clk 0:00:31]}  Kxd8 {[%clk 0:00:04]} 39. h7 {[%clk 0:00:32]}  a3 {[%clk 0:00:03]} 40. h8=Q+ {[%clk 0:00:33]}  Kc7 {[%clk 0:00:02]} 41. Qa8 {[%clk 0:00:28]}  a2 {[%clk 0:00:02]} 42. Qxa2 {[%clk 0:00:23]} 1-0


[Site "https://www.chess.com"]

[Event "Titled Tuesday Blitz June 21 Late 2022"]
[White "Wagner, Dinara"]
[Black "Dardha, Daniel"]
[WhiteFideId "24157570"]
[BlackFideId "240990"]
[WhiteElo "2216"]
[BlackElo "2482"]
[Result "0-1"]
[Round "07"]
[TimeControl "180+1"]
[Date "2022.06.21"]
[WhiteClock "0:00:12"]
[BlackClock "0:00:25"]

1. d4 {[%clk 0:02:56]}  d5 {[%clk 0:02:59]} 2. Nf3 {[%clk 0:02:56]}  Nf6 {[%clk 0:02:58]} 3. c4 {[%clk 0:02:57]}  c6 {[%clk 0:02:58]} 4. g3 {[%clk 0:02:57]}  dxc4 {[%clk 0:02:55]} 5. Bg2 {[%clk 0:02:53]}  g6 {[%clk 0:02:55]} 6. a4 {[%clk 0:02:38]}  Ne4 {[%clk 0:02:51]} 7. Qc2 {[%clk 0:02:30]}  Nd6 {[%clk 0:02:50]} 8. Na3 {[%clk 0:02:31]}  Bg7 {[%clk 0:02:42]} 9. Nxc4 {[%clk 0:02:27]}  Nxc4 {[%clk 0:02:41]} 10. Qxc4 {[%clk 0:02:27]}  O-O {[%clk 0:02:41]} 11. O-O {[%clk 0:02:27]}  a5 {[%clk 0:02:41]} 12. e4 {[%clk 0:02:21]}  Na6 {[%clk 0:02:39]} 13. Be3 {[%clk 0:02:14]}  Nb4 {[%clk 0:02:38]} 14. Rfd1 {[%clk 0:02:07]}  Be6 {[%clk 0:02:25]} 15. Qe2 {[%clk 0:02:07]}  h6 {[%clk 0:02:14]} 16. h3 {[%clk 0:02:06]}  Kh7 {[%clk 0:01:49]} 17. Kh2 {[%clk 0:02:06]}  f5 {[%clk 0:01:45]} 18. Ne5 {[%clk 0:01:39]}  fxe4 {[%clk 0:01:41]} 19. Bxe4 {[%clk 0:01:39]}  Bf5 {[%clk 0:01:40]} 20. Bg2 {[%clk 0:01:20]}  Nd5 {[%clk 0:01:23]} 21. g4 {[%clk 0:01:19]}  Be6 {[%clk 0:01:22]} 22. Qd3 {[%clk 0:01:14]}  Bxe5+ {[%clk 0:01:18]} 23. dxe5 {[%clk 0:01:14]}  Qc7 {[%clk 0:01:16]} 24. Qe4 {[%clk 0:01:04]}  Rad8 {[%clk 0:01:14]} 25. f4 {[%clk 0:00:58]}  Nb4 {[%clk 0:01:04]} 26. Bc5 {[%clk 0:00:42]}  Bd5 {[%clk 0:01:03]} 27. Qe2 {[%clk 0:00:43]}  Rxf4 {[%clk 0:01:00]} 28. Bxd5 {[%clk 0:00:23]}  Rxd5 {[%clk 0:00:57]} 29. Rxd5 {[%clk 0:00:21]}  Nxd5 {[%clk 0:00:56]} 30. Re1 {[%clk 0:00:19]}  Qd7 {[%clk 0:00:52]} 31. Qd2 {[%clk 0:00:17]}  Qe6 {[%clk 0:00:44]} 32. Bd4 {[%clk 0:00:16]}  Rf3 {[%clk 0:00:34]} 33. Re2 {[%clk 0:00:16]}  Nf4 {[%clk 0:00:32]} 34. Re4 {[%clk 0:00:12]}  Rxh3+ {[%clk 0:00:29]} 35. Kg1 {[%clk 0:00:11]}  Qxg4+ {[%clk 0:00:29]} 36. Kf2 {[%clk 0:00:12]}  Qg2+ {[%clk 0:00:26]} 37. Ke1 {[%clk 0:00:12]}  Rh1+ {[%clk 0:00:25]} 0-1


[Site "https://www.chess.com"]

[Event "Titled Tuesday Blitz June 21 Late 2022"]
[White "Zhu, Jiner"]
[Black "Semenenko, Dmytry"]
[WhiteFideId "8608059"]
[BlackFideId "14118645"]
[WhiteElo "2640"]
[BlackElo "2509"]
[Result "1-0"]
[Round "07"]
[TimeControl "180+1"]
[Date "2022.06.22"]
[WhiteClock "0:00:35"]
[BlackClock "0:01:23"]

1. e4 {[%clk 0:03:00]}  Nf6 {[%clk 0:02:59]} 2. e5 {[%clk 0:02:58]}  Nd5 {[%clk 0:02:58]} 3. d4 {[%clk 0:02:58]}  d6 {[%clk 0:02:58]} 4. Nf3 {[%clk 0:02:59]}  Bg4 {[%clk 0:02:57]} 5. Be2 {[%clk 0:02:51]}  c6 {[%clk 0:02:58]} 6. O-O {[%clk 0:02:49]}  Bxf3 {[%clk 0:02:58]} 7. Bxf3 {[%clk 0:02:49]}  dxe5 {[%clk 0:02:59]} 8. dxe5 {[%clk 0:02:49]}  e6 {[%clk 0:02:59]} 9. Qe2 {[%clk 0:02:44]}  Nd7 {[%clk 0:02:59]} 10. c4 {[%clk 0:02:44]}  Ne7 {[%clk 0:02:59]} 11. Bf4 {[%clk 0:02:14]}  Ng6 {[%clk 0:02:59]} 12. Bg3 {[%clk 0:02:14]}  Qc7 {[%clk 0:02:59]} 13. Re1 {[%clk 0:02:12]}  O-O-O {[%clk 0:02:55]} 14. Nc3 {[%clk 0:02:11]}  Bc5 {[%clk 0:02:54]} 15. Ne4 {[%clk 0:02:10]}  Qb6 {[%clk 0:02:47]} 16. Nd6+ {[%clk 0:01:58]}  Bxd6 {[%clk 0:02:46]} 17. exd6 {[%clk 0:01:59]}  e5 {[%clk 0:02:40]} 18. a3 {[%clk 0:01:55]}  Qc5 {[%clk 0:02:34]} 19. Rad1 {[%clk 0:01:49]}  a5 {[%clk 0:02:34]} 20. b4 {[%clk 0:01:48]}  axb4 {[%clk 0:02:32]} 21. axb4 {[%clk 0:01:48]}  Qxb4 {[%clk 0:02:32]} 22. Qa2 {[%clk 0:01:14]}  Kb8 {[%clk 0:02:24]} 23. Bxc6 {[%clk 0:01:07]}  Nb6 {[%clk 0:02:16]} 24. Ra1 {[%clk 0:00:54]}  Rxd6 {[%clk 0:01:29]} 25. Qa7+ {[%clk 0:00:53]}  Kc8 {[%clk 0:01:30]} 26. Qxb7+ {[%clk 0:00:53]}  Kd8 {[%clk 0:01:30]} 27. Ra8+ {[%clk 0:00:48]}  Nxa8 {[%clk 0:01:26]} 28. Qxb4 {[%clk 0:00:49]}  Rxc6 {[%clk 0:01:27]} 29. Qb7 {[%clk 0:00:43]}  Rc8 {[%clk 0:01:23]} 30. Rd1+ {[%clk 0:00:42]}  Ke8 {[%clk 0:01:22]} 31. Qxc8+ {[%clk 0:00:42]}  Ke7 {[%clk 0:01:23]} 32. Rd7+ {[%clk 0:00:37]}  Kf6 {[%clk 0:01:23]} 33. Qc6+ {[%clk 0:00:35]}  Kf5 {[%clk 0:01:23]} 34. Rxf7+ {[%clk 0:00:35]} 1-0


[Site "https://www.chess.com"]

[Event "Titled Tuesday Blitz June 21 Late 2022"]
[White "Adewumi, Tanitoluwa"]
[Black "Zhu, Jiner"]
[WhiteFideId "30966396"]
[BlackFideId "8608059"]
[WhiteElo "2545"]
[BlackElo "2281"]
[Result "0-1"]
[Round "08"]
[TimeControl "180+1"]
[Date "2022.06.21"]
[WhiteClock "0:00:02"]
[BlackClock "0:00:41"]

1. d4 {[%clk 0:02:57]}  Nf6 {[%clk 0:02:58]} 2. c4 {[%clk 0:02:50]}  e6 {[%clk 0:02:58]} 3. Nf3 {[%clk 0:02:49]}  d5 {[%clk 0:02:57]} 4. Nc3 {[%clk 0:02:48]}  c5 {[%clk 0:02:57]} 5. cxd5 {[%clk 0:02:45]}  Nxd5 {[%clk 0:02:58]} 6. e4 {[%clk 0:02:38]}  Nxc3 {[%clk 0:02:58]} 7. bxc3 {[%clk 0:02:39]}  cxd4 {[%clk 0:02:59]} 8. cxd4 {[%clk 0:02:39]}  Bb4+ {[%clk 0:02:59]} 9. Bd2 {[%clk 0:02:38]}  Bxd2+ {[%clk 0:02:59]} 10. Qxd2 {[%clk 0:02:39]}  O-O {[%clk 0:03:00]} 11. Bc4 {[%clk 0:02:38]}  Nd7 {[%clk 0:02:59]} 12. O-O {[%clk 0:02:38]}  b6 {[%clk 0:02:59]} 13. Bb3 {[%clk 0:02:14]}  Bb7 {[%clk 0:02:57]} 14. Rfe1 {[%clk 0:02:15]}  Rc8 {[%clk 0:02:55]} 15. Rad1 {[%clk 0:02:14]}  h6 {[%clk 0:02:52]} 16. Qf4 {[%clk 0:02:02]}  Qc7 {[%clk 0:02:51]} 17. Qe3 {[%clk 0:01:43]}  Nf6 {[%clk 0:02:44]} 18. d5 {[%clk 0:01:29]}  exd5 {[%clk 0:02:34]} 19. e5 {[%clk 0:01:17]}  Ne4 {[%clk 0:02:34]} 20. Qf4 {[%clk 0:00:52]}  Rfd8 {[%clk 0:02:19]} 21. h3 {[%clk 0:00:51]}  Qe7 {[%clk 0:02:13]} 22. Rd4 {[%clk 0:00:48]}  Nc5 {[%clk 0:02:08]} 23. Qg3 {[%clk 0:00:32]}  Ne6 {[%clk 0:01:48]} 24. Rg4 {[%clk 0:00:28]}  Rc3 {[%clk 0:01:42]} 25. Re3 {[%clk 0:00:17]}  d4 {[%clk 0:01:41]} 26. Rxc3 {[%clk 0:00:16]}  dxc3 {[%clk 0:01:41]} 27. Bxe6 {[%clk 0:00:16]}  fxe6 {[%clk 0:01:41]} 28. Rc4 {[%clk 0:00:16]}  Rc8 {[%clk 0:01:34]} 29. Rxc8+ {[%clk 0:00:14]}  Bxc8 {[%clk 0:01:35]} 30. Nd4 {[%clk 0:00:14]}  Qc5 {[%clk 0:01:34]} 31. Nb3 {[%clk 0:00:13]}  c2 {[%clk 0:01:31]} 32. Qf4 {[%clk 0:00:10]}  Qc3 {[%clk 0:01:26]} 33. Kh2 {[%clk 0:00:08]}  Ba6 {[%clk 0:01:25]} 34. Qe3 {[%clk 0:00:06]}  Qxe3 {[%clk 0:01:25]} 35. fxe3 {[%clk 0:00:07]}  Bc4 {[%clk 0:01:25]} 36. Nc1 {[%clk 0:00:07]}  a5 {[%clk 0:01:08]} 37. Kg3 {[%clk 0:00:07]}  b5 {[%clk 0:01:08]} 38. Kf4 {[%clk 0:00:08]}  b4 {[%clk 0:01:00]} 39. Ke4 {[%clk 0:00:08]}  a4 {[%clk 0:00:59]} 40. Kd4 {[%clk 0:00:08]}  b3 {[%clk 0:00:50]} 41. axb3 {[%clk 0:00:07]}  axb3 {[%clk 0:00:51]} 42. Kc3 {[%clk 0:00:08]}  Kf7 {[%clk 0:00:51]} 43. e4 {[%clk 0:00:04]}  h5 {[%clk 0:00:50]} 44. g3 {[%clk 0:00:04]}  h4 {[%clk 0:00:44]} 45. g4 {[%clk 0:00:03]}  Kg6 {[%clk 0:00:44]} 46. Kb2 {[%clk 0:00:03]}  Kg5 {[%clk 0:00:44]} 47. Kc3 {[%clk 0:00:03]}  Kf4 {[%clk 0:00:43]} 48. Kxc4 {[%clk 0:00:03]}  b2 {[%clk 0:00:43]} 49. Nd3+ {[%clk 0:00:03]}  Kg3 {[%clk 0:00:41]} 50. Nxb2 {[%clk 0:00:02]}  c1=Q+ {[%clk 0:00:41]} 0-1


[Site "https://www.chess.com"]

[Event "Titled Tuesday Blitz June 21 Late 2022"]
[White "Alexiadis, Hristos"]
[Black "Koellner, Ruben Gideon"]
[WhiteFideId "4249623"]
[BlackFideId "12993093"]
[WhiteElo "2416"]
[BlackElo "2558"]
[Result "1-0"]
[Round "08"]
[TimeControl "180+1"]
[Date "2022.06.21"]
[WhiteClock "0:01:10"]
[BlackClock "0:00:02"]

1. e4 {[%clk 0:03:00]}  d6 {[%clk 0:02:59]} 2. d4 {[%clk 0:03:00]}  Nf6 {[%clk 0:03:00]} 3. Nc3 {[%clk 0:03:01]}  e5 {[%clk 0:03:00]} 4. Nf3 {[%clk 0:03:00]}  Nbd7 {[%clk 0:03:00]} 5. g4 {[%clk 0:03:00]}  d5 {[%clk 0:02:59]} 6. dxe5 {[%clk 0:02:59]}  Nxe4 {[%clk 0:02:59]} 7. Nxd5 {[%clk 0:02:58]}  Nb6 {[%clk 0:02:59]} 8. c4 {[%clk 0:02:52]}  c6 {[%clk 0:02:58]} 9. Nxb6 {[%clk 0:02:40]}  Qxd1+ {[%clk 0:02:59]} 10. Kxd1 {[%clk 0:02:40]}  axb6 {[%clk 0:03:00]} 11. Be3 {[%clk 0:02:39]}  Bxg4 {[%clk 0:02:59]} 12. Be2 {[%clk 0:02:34]}  Bc5 {[%clk 0:03:00]} 13. Bxc5 {[%clk 0:02:33]}  bxc5 {[%clk 0:02:59]} 14. Ke1 {[%clk 0:02:32]}  Bxf3 {[%clk 0:02:56]} 15. Bxf3 {[%clk 0:02:33]}  Ng5 {[%clk 0:02:57]} 16. Bg2 {[%clk 0:02:33]}  Ne6 {[%clk 0:02:56]} 17. a3 {[%clk 0:02:31]}  Nd4 {[%clk 0:02:52]} 18. Rd1 {[%clk 0:02:30]}  Ke7 {[%clk 0:02:45]} 19. f4 {[%clk 0:02:30]}  Ra4 {[%clk 0:02:32]} 20. Rc1 {[%clk 0:02:27]}  Rg8 {[%clk 0:02:24]} 21. h4 {[%clk 0:02:26]}  h6 {[%clk 0:02:24]} 22. h5 {[%clk 0:02:19]}  Rd8 {[%clk 0:02:10]} 23. Rh3 {[%clk 0:02:10]}  Ne6 {[%clk 0:02:08]} 24. Rb3 {[%clk 0:02:08]}  Ra7 {[%clk 0:02:04]} 25. Rf3 {[%clk 0:02:00]}  Rd4 {[%clk 0:02:01]} 26. f5 {[%clk 0:01:59]}  Ng5 {[%clk 0:01:54]} 27. f6+ {[%clk 0:01:57]}  gxf6 {[%clk 0:01:52]} 28. Rxf6 {[%clk 0:01:58]}  Rg4 {[%clk 0:01:29]} 29. Kf2 {[%clk 0:01:55]}  Ra4 {[%clk 0:01:20]} 30. Rxh6 {[%clk 0:01:53]}  Raxc4 {[%clk 0:01:20]} 31. Rxc4 {[%clk 0:01:52]}  Rxc4 {[%clk 0:01:21]} 32. Rh8 {[%clk 0:01:51]}  Rc2+ {[%clk 0:01:19]} 33. Kg3 {[%clk 0:01:51]}  Rxb2 {[%clk 0:01:20]} 34. h6 {[%clk 0:01:50]}  c4 {[%clk 0:01:13]} 35. h7 {[%clk 0:01:35]}  Rb3+ {[%clk 0:00:33]} 36. Kf4 {[%clk 0:01:34]}  Nxh7 {[%clk 0:00:29]} 37. Rxh7 {[%clk 0:01:35]}  Rxa3 {[%clk 0:00:29]} 38. Be4 {[%clk 0:01:33]}  Ra1 {[%clk 0:00:26]} 39. Ke3 {[%clk 0:01:26]}  Re1+ {[%clk 0:00:17]} 40. Kd4 {[%clk 0:01:26]}  b5 {[%clk 0:00:17]} 41. Bxc6 {[%clk 0:01:24]}  b4 {[%clk 0:00:14]} 42. Bd5 {[%clk 0:01:22]}  Rf1 {[%clk 0:00:09]} 43. Bxc4 {[%clk 0:01:22]}  Rf4+ {[%clk 0:00:06]} 44. Kc5 {[%clk 0:01:21]}  Rf5 {[%clk 0:00:05]} 45. Bd5 {[%clk 0:01:10]}  Rxe5 {[%clk 0:00:03]} 46. Rxf7+ {[%clk 0:01:10]}  Ke8 {[%clk 0:00:03]} 47. Rb7 {[%clk 0:01:10]}  Re1 {[%clk 0:00:03]} 48. Kd6 {[%clk 0:01:10]}  Kf8 {[%clk 0:00:02]} 49. Rf7+ {[%clk 0:01:09]}  Ke8 {[%clk 0:00:02]} 50. Rg7 {[%clk 0:01:10]} 1-0


[Site "https://www.chess.com"]

[Event "Titled Tuesday Blitz June 21 Late 2022"]
[White "Bluebaum, Matthias"]
[Black "Grischuk, Alexander"]
[WhiteFideId "24651516"]
[BlackFideId "4126025"]
[WhiteElo "2556"]
[BlackElo "2762"]
[Result "0-1"]
[Round "08"]
[TimeControl "180+1"]
[Date "2022.06.21"]
[WhiteClock "0:01:17"]
[BlackClock "0:01:48"]

1. d4 {[%clk 0:03:00]}  Nf6 {[%clk 0:03:00]} 2. c4 {[%clk 0:03:01]}  e6 {[%clk 0:03:01]} 3. Nc3 {[%clk 0:03:01]}  Bb4 {[%clk 0:03:00]} 4. e3 {[%clk 0:03:02]}  O-O {[%clk 0:03:00]} 5. Bd2 {[%clk 0:03:03]}  d5 {[%clk 0:02:58]} 6. Nf3 {[%clk 0:03:03]}  Nbd7 {[%clk 0:02:56]} 7. Rc1 {[%clk 0:03:03]}  a6 {[%clk 0:02:51]} 8. Qb3 {[%clk 0:02:51]}  a5 {[%clk 0:02:26]} 9. cxd5 {[%clk 0:02:49]}  Bxc3 {[%clk 0:02:26]} 10. bxc3 {[%clk 0:02:44]}  exd5 {[%clk 0:02:24]} 11. c4 {[%clk 0:02:45]}  c6 {[%clk 0:02:14]} 12. cxd5 {[%clk 0:02:45]}  Nxd5 {[%clk 0:02:14]} 13. Be2 {[%clk 0:02:45]}  a4 {[%clk 0:02:04]} 14. Qa3 {[%clk 0:02:45]}  N7f6 {[%clk 0:02:03]} 15. O-O {[%clk 0:02:43]}  Ne4 {[%clk 0:02:02]} 16. Rfd1 {[%clk 0:02:39]}  Bg4 {[%clk 0:01:56]} 17. Be1 {[%clk 0:02:36]}  Ng5 {[%clk 0:01:53]} 18. Qd3 {[%clk 0:02:12]}  Bxf3 {[%clk 0:01:51]} 19. gxf3 {[%clk 0:02:06]}  Nh3+ {[%clk 0:01:49]} 20. Kh1 {[%clk 0:01:17]}  Qg5 {[%clk 0:01:48]} 0-1


[Site "https://www.chess.com"]